fUSD/lending_fUSD_20240618
["ID","MTS","AMOUNT","RATE_DAILY","PERIOD"]
[329809268,1718686240264,-2873.71452217,0.00020772,2]
[329809269,1718686240299,-7053.221239,0.00020772,2]
[329809270,1718686240386,-73.778,0.00020772,2]
[329809271,1718686240397,-664.57166935,0.00020772,2]
[329809272,1718686240409,-691.31999944,0.00020772,2]
[329809273,1718686240438,-284.54746564,0.00020772,2]
[329809274,1718686240449,-406.24944498,0.00020772,2]
[329809275,1718686240463,-812.13940897,0.00020772,2]
[329809276,1718686240474,-1103.8323,0.00020772,2]
[329809277,1718686240486,-924.1338722,0.00020772,2]
[329809278,1718686240531,-6794.25220014,0.00020772,2]
[329809279,1718686240541,-1196.0,0.00020772,2]
[329809280,1718686240550,-150.113,0.00020772,2]
[329809281,1718686240560,-252.946,0.00020772,2]
[329809282,1718686240571,-1580.633,0.00020772,2]
[329809283,1718686240581,-165.822,0.00020772,2]
[329809284,1718686240590,-1067.0,0.00020772,2]
[329809285,1718686240600,-152.0,0.00020872,4]
[329809286,1718686240613,-10000.0,0.0002107,2]
[329809287,1718686240622,-150.0,0.00021221,2]
[329809288,1718686240632,-151.0,0.00021265,2]
[329809289,1718686240642,-1500.0,0.00021273,2]
[329809290,1718686240651,-150.0,0.00021303,2]
[329809291,1718686240660,-934.27742191,0.00021332,2]
[329809292,1718686240670,-100000.0,0.00021447,2]
[329809293,1718686240679,-155.0,0.000215,2]
[329809294,1718686240690,-1000.0,0.000215,2]
[329809295,1718686240699,-1000.0,0.000215,2]
[329809296,1718686240709,-300.0,0.000215,7]
[329809297,1718686240718,-310.2236965,0.000215,2]
[329809298,1718686240728,-324.39426552,0.00021514,2]
[329809299,1718686240738,-388.0972739,0.00021514,2]
[329809300,1718686240749,-9678.24114203,0.00021515,2]
[329809301,1718686240776,-298.31412405,0.00021515,2]
[329809302,1718686240787,-15069.30253392,0.00021515,2]
[329809303,1718686240797,-1000.0,0.00021515,2]
[329809304,1718686240806,-513.3194932,0.00021515,2]
[329809305,1718686240818,-411.63357934,0.00021515,2]
[329809306,1718686240845,-516.34,0.00021515,2]
[329809307,1718686240895,-95537.03651138,0.00021515,2]
[329809308,1718686240906,-643.65507974,0.00021515,2]
[329809309,1718686240917,-3288.83314401,0.00021515,2]
[329809310,1718686240929,-250.0,0.00021515,2]
[329809311,1718686240940,-312.16935958,0.00021515,2]
[329809312,1718686240991,94003.03669343,0.0001,2]
[329809321,1718686243487,-824.90335864,0.00021515,2]
[329809325,1718686243498,-1493.92083092,0.00021515,2]
[329809328,1718686243509,-775.35976444,0.00021515,2]
[329809338,1718686243602,-1900.24289999,0.00021515,2]
[329809339,1718686243617,-4859.22515269,0.00021515,2]
[329809340,1718686243630,-1333.60642354,0.00021515,2]
[329809341,1718686243737,-132339.75440253,0.00021515,2]
[329809342,1718686243746,-700.0,0.000216,7]
[329809343,1718686243756,-1000.0,0.000216,2]
[329809344,1718686243765,-1110.64875862,0.00021638,2]
[329809345,1718686243775,-153.186115,0.00021644,2]
[329809346,1718686243784,-1500.0,0.00021651,2]
[329809347,1718686243795,-151.0,0.00021654,2]
[329809348,1718686243805,-1100.0,0.000217,7]
[329809349,1718686243814,-1000.0,0.000217,2]
[329809350,1718686243824,-1500.0,0.000218,7]
[329809351,1718686243833,-668.0,0.000218,2]
[329809352,1718686243843,-150.0,0.00021807,2]
[329809353,1718686243854,-150.0,0.00021809,2]
[329809354,1718686243864,-497.8815,0.00021815,2]
[329809355,1718686243873,-744.0893,0.00021815,2]
[329809356,1718686243883,-7500.0,0.00021817,2]
[329809357,1718686243894,-1779.72440915,0.00021817,2]
[329809358,1718686243904,-150.0,0.00021842,2]
[329809359,1718686243913,-262.18,0.00021866,2]
[329809360,1718686243923,-1800.0,0.000219,7]
[329809361,1718686243935,-1000.0,0.000219,2]
[329809362,1718686243944,-1000.0,0.000219,2]
[329809363,1718686243954,-12739.71338692,0.00021915,2]
[329809364,1718686243964,-205.69872205,0.00021915,2]
[329809365,1718686243973,-200.0,0.00021915,2]
[329809366,1718686243982,-156.06190742,0.00021915,4]
[329809367,1718686243992,-294.22516719,0.00021915,2]
[329809368,1718686244002,-296.76888305,0.00021915,2]
[329809369,1718686244012,-155.34634038,0.00021915,2]
[329809371,1718686244021,-460.7955554,0.00021915,2]
[329809373,1718686244030,-380.54663378,0.00021916,2]
[329809374,1718686244040,-166.46760454,0.00021917,2]
[329809376,1718686244049,-267.37735182,0.00021917,2]
[329809378,1718686244059,-14038.77404861,0.00021917,2]
[329809379,1718686244068,-500.0,0.00021917,2]
[329809380,1718686244078,-500.0,0.00021917,2]
[329809381,1718686244087,-500.0,0.00021917,2]
[329809382,1718686244096,-500.24068106,0.00021917,2]
[329809383,1718686244105,-500.99175784,0.00021917,2]
[329809385,1718686244115,-502.12874947,0.00021917,2]
[329809387,1718686244124,-590.23312161,0.00021917,2]
[329809388,1718686244134,-502.27405887,0.00021917,2]
[329809389,1718686244144,-504.63411052,0.00021917,2]
[329809390,1718686244154,-510.66031817,0.00021917,2]
[329809391,1718686244164,-509.00211264,0.00021917,2]
[329809392,1718686244174,-502.48138442,0.00021917,2]
[329809393,1718686244184,-568.57399476,0.00021917,2]
[329809394,1718686244193,-500.83059985,0.00021917,2]
[329809395,1718686244203,-502.72685241,0.00021917,2]
[329809396,1718686244213,-501.43270391,0.00021917,2]
[329809397,1718686244222,-591.9758237,0.00021917,2]
[329809398,1718686244232,-502.30612205,0.00021917,2]
[329809399,1718686244241,-502.68561994,0.00021917,2]
[329809400,1718686244251,-504.4562424,0.00021917,2]
[329809401,1718686244260,-513.33793379,0.00021917,2]
[329809402,1718686244269,-502.86972709,0.00021917,2]
[329809403,1718686244279,-502.11376378,0.00021917,2]
[329809404,1718686244288,-578.42680501,0.00021917,2]
[329809405,1718686244297,-500.0,0.00021917,2]
[329809406,1718686244307,-500.0,0.00021917,2]
[329809407,1718686244316,-500.0,0.00021917,2]
[329809408,1718686244326,-500.0,0.00021917,2]
[329809409,1718686244336,-500.0,0.00021917,2]
[329809410,1718686244345,-500.0,0.00021917,2]
[329809411,1718686244355,-500.0,0.00021917,2]
[329809412,1718686244364,-292.33796797,0.00021917,2]
[329809413,1718686244373,-500.0,0.00021917,2]
[329809414,1718686244383,-500.0,0.00021917,2]
[329809415,1718686244393,-519.58,0.00021917,2]
[329809416,1718686244402,-500.0,0.00021917,2]
[329809417,1718686244412,-500.0,0.00021917,2]
[329809418,1718686244422,-500.0,0.00021917,2]
[329809419,1718686244431,-500.0,0.00021917,2]
[329809420,1718686244441,-500.0,0.00021917,2]
[329809421,1718686244450,-500.0,0.00021917,2]
[329809422,1718686244460,-500.0,0.00021917,2]
[329809423,1718686244470,-500.0,0.00021917,2]
[329809424,1718686244479,-513.91054701,0.00021917,2]
[329809425,1718686244488,-500.0,0.00021917,2]
[329809426,1718686244498,-500.0,0.00021917,2]
[329809427,1718686244508,-500.0,0.00021917,2]
[329809428,1718686244518,-500.0,0.00021917,2]
[329809429,1718686244534,-187.79441714,0.00021917,2]
[329809430,1718686244543,-500.0,0.00021917,2]
[329809431,1718686244552,-500.0,0.00021917,2]
[329809432,1718686244562,-500.0,0.00021917,2]
[329809433,1718686244574,-500.0,0.00021917,2]
[329809434,1718686244583,-500.0,0.00021917,2]
[329809435,1718686244593,-505.5,0.00021917,2]
[329809436,1718686244602,-500.0,0.00021917,2]
[329809437,1718686244612,-500.0,0.00021917,2]
[329809438,1718686244621,-500.0,0.00021917,2]
[329809439,1718686244631,-500.0,0.00021917,2]
[329809440,1718686244640,-528.26,0.00021917,2]
[329809441,1718686244648,-500.0,0.00021917,2]
[329809442,1718686244658,-500.0,0.00021917,2]
[329809443,1718686244668,-500.0,0.00021917,2]
[329809444,1718686244677,-500.0,0.00021917,2]
[329809445,1718686244686,-500.0,0.00021917,2]
[329809446,1718686244696,-500.0,0.00021917,2]
[329809447,1718686244706,-500.0,0.00021917,2]
[329809448,1718686244716,-500.0,0.00021917,2]
[329809449,1718686244725,-500.0,0.00021917,2]
[329809450,1718686244735,-500.0,0.00021917,2]
[329809451,1718686244744,-500.0,0.00021917,2]
[329809452,1718686244753,-500.0,0.00021917,2]
[329809453,1718686244763,-500.0,0.00021917,2]
[329809454,1718686244772,-500.0,0.00021917,2]
[329809455,1718686244782,-500.0,0.00021917,2]
[329809456,1718686244791,-500.0,0.00021917,2]
[329809457,1718686244800,-500.0,0.00021917,2]
[329809458,1718686244811,-569.29,0.00021917,2]
[329809459,1718686244819,-500.0,0.00021917,2]
[329809460,1718686244835,-500.0,0.00021917,2]
[329809461,1718686244844,-500.0,0.00021917,2]
[329809462,1718686244853,-500.0,0.00021917,2]
[329809463,1718686244863,-500.0,0.00021917,2]
[329809464,1718686244871,-437.16,0.00021917,7]
[329809465,1718686244884,-500.0,0.00021917,2]
[329809466,1718686244893,-500.0,0.00021917,2]
[329809467,1718686244902,-500.0,0.00021917,2]
[329809468,1718686244911,-500.0,0.00021917,2]
[329809469,1718686244926,-500.0,0.00021917,2]
[329809470,1718686244935,-347.75320145,0.00021917,2]
[329809471,1718686245219,-152.24679855,0.00021917,2]
[329809472,1718686245228,-500.0,0.00021917,2]
[329809473,1718686245238,-500.0,0.00021917,2]
[329809474,1718686245247,-500.0,0.00021917,2]
[329809475,1718686245257,-500.0,0.00021917,2]
[329809476,1718686245266,-500.0,0.00021917,2]
[329809477,1718686245276,-201.03341477,0.00021917,2]
[329809478,1718686245287,-298.96658523,0.00021917,2]
[329809479,1718686245297,-500.0,0.00021917,2]
[329809480,1718686245306,-500.0,0.00021917,2]
[329809481,1718686245315,-500.0,0.00021917,2]
[329809482,1718686245326,-500.0,0.00021917,2]
[329809483,1718686245335,-500.0,0.00021917,2]
[329809484,1718686245344,-500.0,0.00021917,2]
[329809485,1718686245353,-500.0,0.00021917,2]
[329809486,1718686245363,-500.0,0.00021917,2]
[329809487,1718686245372,-500.0,0.00021917,2]
[329809488,1718686245381,-500.0,0.00021917,2]
[329809489,1718686245392,-500.0,0.00021917,2]
[329809490,1718686245401,-500.43614077,0.00021917,2]
[329809491,1718686245414,-6.53385923,0.00021917,2]
[329809492,1718686245423,-335.76614077,0.00021917,2]
[329809493,1718686245434,-164.23385923,0.00021917,2]
[329809494,1718686245443,-500.0,0.00021917,2]
[329809495,1718686245452,-500.0,0.00021917,2]
[329809496,1718686245462,-513.82404766,0.00021917,2]
[329809497,1718686245471,-500.0,0.00021917,2]
[329809498,1718686245481,-500.0,0.00021917,2]
[329809499,1718686245490,-500.0,0.00021917,2]
[329809500,1718686245499,-500.0,0.00021917,2]
[329809501,1718686245508,-500.0,0.00021917,2]
[329809502,1718686245518,-500.0,0.00021917,2]
[329809503,1718686245531,-500.0,0.00021917,2]
[329809504,1718686245540,-500.0,0.00021917,2]
[329809505,1718686245549,-500.0,0.00021917,2]
[329809506,1718686245559,-500.0,0.00021917,2]
[329809507,1718686245568,-500.0,0.00021917,2]
[329809508,1718686245578,-500.0,0.00021917,2]
[329809509,1718686245587,-500.0,0.00021917,2]
[329809510,1718686245598,-500.0,0.00021917,2]
[329809511,1718686245611,-500.0,0.00021917,2]
[329809512,1718686245622,-500.0,0.00021917,2]
[329809513,1718686245632,-500.0,0.00021917,2]
[329809514,1718686245642,-500.0,0.00021917,2]
[329809515,1718686245651,-500.0,0.00021917,2]
[329809516,1718686245661,-500.0,0.00021917,2]
[329809517,1718686245671,-500.0,0.00021917,2]
[329809518,1718686245680,-155.4573445,0.00021917,2]
[329809519,1718686245690,-500.0,0.00021917,2]
[329809520,1718686245700,-500.0,0.00021917,2]
[329809521,1718686245710,-287.81795862,0.00021917,2]
[329809522,1718686245723,-212.18204138,0.00021917,2]
[329809523,1718686245732,-166.23940862,0.00021917,2]
[329809524,1718686245766,-333.76059138,0.00021917,2]
[329809525,1718686245775,-500.0,0.00021917,2]
[329809526,1718686245785,-500.0,0.00021917,2]
[329809527,1718686245794,-500.0,0.00021917,2]
[329809528,1718686245803,-500.0,0.00021917,2]
[329809529,1718686245812,-523.30880636,0.00021917,2]
[329809530,1718686245821,-500.0,0.00021917,2]
[329809531,1718686245830,-500.0,0.00021917,2]
[329809532,1718686245839,-535.39608158,0.00021917,2]
[329809534,1718686245849,-266.13805064,0.00021917,2]
[329809535,1718686245858,-500.0,0.00021917,2]
[329809536,1718686245867,-500.0,0.00021917,2]
[329809537,1718686245877,-649.76448628,0.00021917,2]
[329809538,1718686245886,-500.0,0.00021917,2]
[329809539,1718686245895,-174.05629974,0.00021917,2]
[329809540,1718686245904,-500.0,0.00021917,2]
[329809541,1718686245914,-500.0,0.00021917,2]
[329809542,1718686245923,-500.0,0.00021917,2]
[329809543,1718686245932,-500.0,0.00021917,2]
[329809544,1718686245941,-554.44793337,0.00021917,2]
[329809545,1718686245950,-500.0,0.00021917,2]
[329809546,1718686245959,-500.0,0.00021917,2]
[329809547,1718686245969,-500.0,0.00021917,2]
[329809548,1718686245978,-500.0,0.00021917,2]
[329809549,1718686245987,-915.0,0.00021917,2]
[329809550,1718686245996,-500.0,0.00021917,2]
[329809551,1718686246006,-500.0,0.00021917,2]
[329809552,1718686246015,-500.0,0.00021917,2]
[329809553,1718686246024,-500.0,0.00021917,2]
[329809554,1718686246034,-500.0,0.00021917,2]
[329809555,1718686246043,-500.0,0.00021917,2]
[329809556,1718686246052,-500.0,0.00021917,2]
[329809557,1718686246062,-500.0,0.00021917,2]
[329809558,1718686246071,-500.0,0.00021917,2]
[329809559,1718686246080,-6.93053916,0.00021917,2]
[329809560,1718686246094,-453.999994,0.00021917,2]
[329809561,1718686246105,-39.06946684,0.00021917,2]
[329809562,1718686246114,-500.0,0.00021917,2]
[329809563,1718686246124,-500.0,0.00021917,2]
[329809564,1718686246134,-250.16501928,0.00021917,2]
[329809565,1718686246145,-249.83498072,0.00021917,2]
[329809566,1718686246155,-500.0,0.00021917,2]
[329809567,1718686246164,-500.0,0.00021917,2]
[329809568,1718686246174,-500.0,0.00021917,2]
[329809569,1718686246183,-500.0,0.00021917,2]
[329809570,1718686246193,-500.0,0.00021917,2]
[329809571,1718686246202,-500.0,0.00021917,2]
[329809572,1718686246211,-543.14262605,0.00021917,2]
[329809573,1718686246223,-39.98131172,0.00021917,2]
[329809574,1718686246233,-500.0,0.00021917,2]
[329809575,1718686246242,-500.0,0.00021917,2]
[329809576,1718686246251,-500.0,0.00021917,2]
[329809577,1718686246261,-500.0,0.00021917,2]
[329809578,1718686246270,-500.0,0.00021917,2]
[329809579,1718686246279,-575.17,0.00021917,2]
[329809580,1718686246289,-52.04718728,0.00021917,2]
[329809581,1718686246300,-447.95281272,0.00021917,2]
[329809582,1718686246309,-500.0,0.00021917,2]
[329809583,1718686246318,-238.69598817,0.00021917,2]
[329809584,1718686246330,-261.30401183,0.00021917,2]
[329809585,1718686246339,-500.0,0.00021917,2]
[329809586,1718686246348,-145.74598824,0.00021917,2]
[329809587,1718686246359,-354.25401176,0.00021917,2]
[329809588,1718686246368,-500.0,0.00021917,2]
[329809589,1718686246377,-500.0,0.00021917,2]
[329809590,1718686246386,-448.98706659,0.00021917,2]
[329809591,1718686246748,-51.01293341,0.00021917,2]
[329809592,1718686246757,-500.0,0.00021917,2]
[329809593,1718686246766,-500.0,0.00021917,2]
[329809594,1718686246775,-500.0,0.00021917,2]
[329809595,1718686246784,-500.0,0.00021917,2]
[329809596,1718686246793,-500.0,0.00021917,2]
[329809597,1718686246802,-500.0,0.00021917,2]
[329809598,1718686246811,-500.0,0.00021917,2]
[329809599,1718686246820,-500.0,0.00021917,2]
[329809600,1718686246829,-579.36,0.00021917,2]
[329809601,1718686246838,-500.0,0.00021917,2]
[329809602,1718686246847,-500.0,0.00021917,2]
[329809603,1718686246857,-512.70965071,0.00021917,2]
[329809604,1718686246869,-500.0,0.00021917,2]
[329809605,1718686246878,-758.73,0.00021917,2]
[329809606,1718686246887,-500.0,0.00021917,2]
[329809607,1718686246896,-500.0,0.00021917,2]
[329809608,1718686246906,-500.0,0.00021917,2]
[329809609,1718686246917,-500.0,0.00021917,2]
[329809610,1718686246927,-500.0,0.00021917,2]
[329809611,1718686246936,-500.0,0.00021917,2]
[329809612,1718686246945,-523.06614783,0.00021917,2]
[329809613,1718686246956,-689.24,0.00021917,2]
[329809614,1718686246965,-500.0,0.00021917,2]
[329809615,1718686246974,-500.0,0.00021917,2]
[329809616,1718686246984,-500.0,0.00021917,2]
[329809617,1718686246993,-500.0,0.00021917,2]
[329809618,1718686247003,-500.0,0.00021917,2]
[329809619,1718686247012,-500.0,0.00021917,2]
[329809620,1718686247021,-500.65437736,0.00021917,2]
[329809621,1718686247030,-500.0,0.00021917,2]
[329809622,1718686247040,-500.0,0.00021917,2]
[329809623,1718686247049,-500.0,0.00021917,2]
[329809624,1718686247059,-500.0,0.00021917,2]
[329809625,1718686247068,-504.88927218,0.00021917,2]
[329809626,1718686247078,-500.0,0.00021917,2]
[329809627,1718686247087,-500.0,0.00021917,2]
[329809628,1718686247096,-500.0,0.00021917,2]
[329809629,1718686247106,-624.49,0.00021917,2]
[329809630,1718686247117,-500.0,0.00021917,2]
[329809631,1718686247126,-500.0,0.00021917,2]
[329809632,1718686247136,-500.0,0.00021917,2]
[329809633,1718686247145,-371.70190783,0.00021917,2]
[329809634,1718686247160,-134.02577851,0.00021917,2]
[329809635,1718686247171,-500.0,0.00021917,2]
[329809636,1718686247180,-500.0,0.00021917,2]
[329809637,1718686247191,-500.0,0.00021917,2]
[329809638,1718686247204,-500.0,0.00021917,2]
[329809639,1718686247215,-500.0,0.00021917,2]
[329809640,1718686247225,-500.0,0.00021917,2]
[329809641,1718686247235,-500.0,0.00021917,2]
[329809642,1718686247245,-500.0,0.00021917,2]
[329809643,1718686247256,-526.49,0.00021917,2]
[329809644,1718686247265,-504.57217283,0.00021917,2]
[329809645,1718686247274,-620.65,0.00021917,2]
[329809646,1718686247283,-500.0,0.00021917,2]
[329809647,1718686247292,-225.11577048,0.00021917,2]
[329809648,1718686247319,-274.88422952,0.00021917,2]
[329809649,1718686247329,-500.0,0.00021917,2]
[329809650,1718686247339,-500.0,0.00021917,2]
[329809651,1718686247348,-500.0,0.00021917,2]
[329809652,1718686247357,-500.0,0.00021917,2]
[329809653,1718686247367,-500.0,0.00021917,2]
[329809654,1718686247377,-406.01483585,0.00021917,2]
[329809655,1718686247386,-500.0,0.00021917,2]
[329809656,1718686247396,-796.1,0.00021917,2]
[329809657,1718686247406,-1139.23,0.00021917,2]
[329809658,1718686247415,-166.73447779,0.00021917,2]
[329809659,1718686247425,-500.0,0.00021917,2]
[329809660,1718686247435,-810.57,0.00021917,2]
[329809661,1718686247452,-500.0,0.00021917,2]
[329809662,1718686247462,-500.0,0.00021917,2]
[329809663,1718686247471,-592.2,0.00021917,2]
[329809664,1718686247481,-500.0,0.00021917,2]
[329809665,1718686247490,-1018.35,0.00021917,2]
[329809666,1718686247500,-500.0,0.00021917,2]
[329809667,1718686247510,-1019.6,0.00021917,2]
[329809668,1718686247522,-500.0,0.00021917,2]
[329809669,1718686247533,-500.0,0.00021917,2]
[329809670,1718686247542,-1308.75,0.00021917,2]
[329809671,1718686247552,-281.81132173,0.00021917,2]
[329809672,1718686247572,-218.18867827,0.00021917,2]
[329809673,1718686247581,-542.11,0.00021917,2]
[329809674,1718686247590,-500.0,0.00021917,2]
[329809675,1718686247600,-667.52,0.00021917,2]
[329809676,1718686247611,-500.0,0.00021917,2]
[329809677,1718686247619,-201.10949922,0.00021917,2]
[329809678,1718686247632,-254.86173603,0.00021917,2]
[329809679,1718686247643,-44.02876475,0.00021917,2]
[329809680,1718686247653,-281.92784943,0.00021917,2]
[329809681,1718686247666,-223.74211772,0.00021917,2]
[329809682,1718686247676,-354.55639009,0.00021917,2]
[329809683,1718686247685,-108.93810885,0.00021917,2]
[329809684,1718686247697,-830.49189115,0.00021917,2]
[329809685,1718686247706,-773.44,0.00021917,2]
[329809686,1718686247715,-308.07361754,0.00021917,2]
[329809687,1718686247724,-828.58,0.00021917,2]
[329809688,1718686247733,-500.0,0.00021917,2]
[329809689,1718686247743,-500.0,0.00021917,2]
[329809690,1718686247752,-609.81,0.00021917,2]
[329809691,1718686247761,-500.0,0.00021917,2]
[329809692,1718686247771,-500.0,0.00021917,2]
[329809693,1718686247780,-547.19,0.00021917,2]
[329809694,1718686247790,-500.0,0.00021917,2]
[329809695,1718686247799,-1053.91,0.00021917,2]
[329809696,1718686247808,-500.0,0.00021917,2]
[329809697,1718686247818,-500.0,0.00021917,2]
[329809698,1718686247828,-87.57334972,0.00021917,2]
[329809699,1718686247841,-412.42665028,0.00021917,2]
[329809700,1718686247850,-500.0,0.00021917,2]
[329809701,1718686247859,-500.0,0.00021917,2]
[329809702,1718686247869,-535.79,0.00021917,2]
[329809703,1718686247878,-500.0,0.00021917,2]
[329809704,1718686247888,-500.0,0.00021917,2]
[329809705,1718686247897,-500.0,0.00021917,2]
[329809706,1718686247907,-1084.12,0.00021917,2]
[329809707,1718686247916,-500.0,0.00021917,2]
[329809708,1718686247926,-1701.54,0.00021917,2]
[329809709,1718686247935,-1129.18,0.00021917,2]
[329809710,1718686247948,-643.56358961,0.00021917,2]
[329809711,1718686247958,-416.21937433,0.00021917,2]
[329809712,1718686247970,-87.29923763,0.00021917,2]
[329809713,1718686247980,-528.79092094,0.00021917,2]
[329809714,1718686247989,-500.0,0.00021917,2]
[329809715,1718686247999,-500.0,0.00021917,2]
[329809716,1718686248009,-691.99,0.00021917,2]
[329809717,1718686248017,-500.0,0.00021917,2]
[329809718,1718686248028,-913.48152231,0.00021917,2]
[329809719,1718686248040,-4952.48764898,0.00021917,2]
[329809720,1718686248052,-431.60659171,0.00021917,2]
[329809721,1718686248106,-295.99687777,0.00021917,2]
[329809722,1718686248118,-11139.86805286,0.00021917,2]
[329809723,1718686248128,-500.0,0.00021917,2]
[329809724,1718686248138,-500.0,0.00021917,2]
[329809725,1718686248147,-1103.81,0.00021917,2]
[329809726,1718686248157,-1029.05,0.00021917,2]
[329809727,1718686248167,-500.0,0.00021917,2]
[329809728,1718686248176,-500.0,0.00021917,2]
[329809729,1718686248185,-428.02806614,0.00021917,2]
[329809730,1718686248202,-71.97193386,0.00021917,2]
[329809731,1718686248211,-497.66806614,0.00021917,2]
[329809732,1718686248222,-2.33193386,0.00021917,2]
[329809733,1718686248232,-500.0,0.00021917,2]
[329809734,1718686248241,-500.0,0.00021917,2]
[329809735,1718686248251,-500.0,0.00021917,2]
[329809736,1718686248260,-182.98626786,0.00021917,2]
[329809737,1718686248270,-752.15886433,0.00021917,2]
[329809738,1718686248282,-30.29113567,0.00021917,2]
[329809739,1718686248291,-500.0,0.00021917,2]
[329809740,1718686248302,-1144.49,0.00021917,2]
[329809741,1718686248311,-611.60953227,0.00021917,2]
[329809742,1718686248320,-500.0,0.00021917,2]
[329809743,1718686248329,-500.0,0.00021917,2]
[329809744,1718686248339,-864.87,0.00021917,2]
[329809745,1718686248348,-976.13,0.00021917,2]
[329809746,1718686248358,-576.85,0.00021917,2]
[329809747,1718686248367,-1220.68,0.00021917,2]
[329809748,1718686248377,-500.0,0.00021917,2]
[329809749,1718686248387,-500.0,0.00021917,2]
[329809750,1718686248396,-500.0,0.00021917,2]
[329809751,1718686248406,-500.0,0.00021917,2]
[329809752,1718686248415,-547.34,0.00021917,2]
[329809753,1718686248425,-500.0,0.00021917,2]
[329809754,1718686248434,-500.0,0.00021917,2]
[329809755,1718686248444,-620.92,0.00021917,2]
[329809756,1718686248454,-741.38,0.00021917,2]
[329809757,1718686248463,-500.0,0.00021917,2]
[329809758,1718686248473,-273.42816693,0.00021917,2]
[329809759,1718686248482,-500.0,0.00021917,2]
[329809760,1718686248491,-1730.98,0.00021917,2]
[329809761,1718686248501,-500.0,0.00021917,2]
[329809762,1718686248511,-500.0,0.00021917,2]
[329809763,1718686248521,-548.43,0.00021917,2]
[329809764,1718686248536,-675.46,0.00021917,2]
[329809765,1718686248546,-500.0,0.00021917,2]
[329809766,1718686248555,-500.0,0.00021917,2]
[329809767,1718686248565,-987.03,0.00021917,2]
[329809768,1718686248576,-500.0,0.00021917,2]
[329809769,1718686248585,-500.0,0.00021917,2]
[329809770,1718686248594,-500.0,0.00021917,2]
[329809771,1718686248605,-500.0,0.00021917,2]
[329809772,1718686248615,-986.26,0.00021917,2]
[329809773,1718686248624,-549.10311725,0.00021917,2]
[329809774,1718686248633,-1162.9,0.00021917,2]
[329809775,1718686248643,-500.0,0.00021917,2]
[329809776,1718686248652,-546.75726796,0.00021917,2]
[329809777,1718686248662,-1055.01,0.00021917,2]
[329809778,1718686248671,-931.27,0.00021917,2]
[329809779,1718686248680,-935.77,0.00021917,2]
[329809780,1718686248690,-500.0,0.00021917,2]
[329809781,1718686248700,-647.27,0.00021917,2]
[329809782,1718686248710,-621.20888964,0.00021917,2]
[329809783,1718686248719,-573.93428163,0.00021917,2]
[329809784,1718686248729,-1259.61,0.00021917,2]
[329809785,1718686248738,-500.0,0.00021917,2]
[329809786,1718686248747,-500.0,0.00021917,2]
[329809787,1718686248756,-572.65363165,0.00021917,2]
[329809788,1718686248765,-900.21,0.00021917,2]
[329809789,1718686248775,-500.0,0.00021917,2]
[329809790,1718686248784,-500.0,0.00021917,2]
[329809791,1718686248793,-500.0,0.00021917,2]
[329809792,1718686248802,-500.0,0.00021917,2]
[329809793,1718686248812,-636.0,0.00021917,2]
[329809794,1718686248821,-500.0,0.00021917,2]
[329809795,1718686248830,-500.0,0.00021917,2]
[329809796,1718686248839,-500.0,0.00021917,2]